fUSD/lending_fUSD_20250329
["ID","MTS","AMOUNT","RATE_DAILY","PERIOD"]
[356808419,1743235746573,-500.0,0.00039726,30]
[356808420,1743235746608,-704.24,0.00039726,30]
[356808421,1743235746648,-1519.05,0.00039726,30]
[356808422,1743235746684,-500.0,0.00039726,30]
[356808423,1743235746720,-500.0,0.00039726,30]
[356808424,1743235746756,-500.0,0.00039726,30]
[356808425,1743235746794,-2474.82,0.00039726,30]
[356808426,1743235746833,-4980.22,0.00039726,30]
[356808427,1743235746872,-944.43,0.00039726,30]
[356808428,1743235746909,-500.0,0.00039726,30]
[356808429,1743235747063,-500.0,0.00039726,30]
[356808430,1743235747103,-1154.76,0.00039726,30]
[356808431,1743235747142,-635.2,0.00039726,30]
[356808434,1743235747180,-500.0,0.00039726,30]
[356808436,1743235747220,-500.0,0.00039726,30]
[356808437,1743235747261,-1215.92,0.00039726,30]
[356808438,1743235747302,-500.0,0.00039726,30]
[356808439,1743235747341,-500.0,0.00039726,30]
[356808440,1743235747379,-500.0,0.00039726,30]
[356808441,1743235747418,-601.87022669,0.00039726,30]
[356808442,1743235747457,-549.53,0.00039726,30]
[356808443,1743235747495,-841.6,0.00039726,30]
[356808444,1743235747534,-500.0,0.00039726,30]
[356808445,1743235747571,-500.0,0.00039726,30]
[356808446,1743235747612,-500.0,0.00039726,30]
[356808447,1743235747659,-1673.28,0.00039726,30]
[356808448,1743235747702,-4021.44,0.00039726,30]
[356808449,1743235747748,-500.0,0.00039726,30]
[356808450,1743235747792,-500.0,0.00039726,30]
[356808451,1743235747838,-645.85,0.00039726,30]
[356808452,1743235747882,-500.0,0.00039726,30]
[356808453,1743235747924,-500.0,0.00039726,30]
[356808454,1743235747971,-500.0,0.00039726,30]
[356808455,1743235748013,-500.0,0.00039726,30]
[356808456,1743235748054,-3232.5,0.00039726,30]
[356808457,1743235748094,-2197.43,0.00039726,30]
[356808458,1743235748137,-500.0,0.00039726,30]
[356808459,1743235748179,-691.46,0.00039726,30]
[356808460,1743235748222,-518.98730694,0.00039726,30]
[356808461,1743235748262,-500.0,0.00039726,30]
[356808462,1743235748299,-500.0,0.00039726,30]
[356808463,1743235748338,-500.0,0.00039726,30]
[356808464,1743235748377,-500.0,0.00039726,30]
[356808465,1743235748416,-1187.26,0.00039726,30]
[356808466,1743235748456,-13149.44,0.00039726,30]
[356808467,1743235748495,-500.0,0.00039726,30]
[356808468,1743235748533,-500.0,0.00039726,30]
[356808469,1743235748572,-500.0,0.00039726,30]
[356808470,1743235748619,-500.0,0.00039726,30]
[356808471,1743235748660,-2622.65,0.00039726,30]
[356808472,1743235748702,-1673.8,0.00039726,30]
[356808473,1743235748741,-500.0,0.00039726,30]
[356808474,1743235748782,-992.28,0.00039726,30]
[356808475,1743235748822,-500.0,0.00039726,30]
[356808476,1743235748859,-258.87361987,0.00039726,30]
[356808477,1743235748900,-1940.15,0.00039726,30]
[356808478,1743235748941,-500.0,0.00039726,30]
[356808479,1743235748981,-500.0,0.00039726,30]
[356808480,1743235749023,-49373.65,0.00039726,30]
[356808481,1743235749065,-11680.42,0.00039726,30]
[356808488,1743235749220,-565.14355639,0.00039726,30]
[356808491,1743235749262,-2113.54,0.00039726,30]
[356808493,1743235749301,-266.50766362,0.00039726,30]
[356808496,1743235749339,-500.0,0.00039726,30]
[356808499,1743235749400,-1037.22,0.00039726,30]
[356808501,1743235749458,-1073.54,0.00039726,30]
[356808504,1743235749501,-523.89681646,0.00039726,30]
[356808507,1743235749540,-500.0,0.00039726,30]
[356808509,1743235749578,-204.0,0.0003982,30]
[356808512,1743235749616,-91886.17130117,0.000399,90]
[356808514,1743235749660,-1000.0,0.0004,120]
[356808517,1743235749697,-1000.0,0.0004,120]
[356808519,1743235749736,-363.28,0.0004,120]
[356808522,1743235749774,-150.0,0.0004,120]
[356808525,1743235749814,-219.10490225,0.0004,30]
[356808527,1743235749853,-514.761,0.0004,120]
[356808529,1743235749894,-516.581858,0.0004,30]
[356808530,1743235749938,-500.0,0.0004,30]
[356808531,1743235749995,-267.32859265,0.0004,30]
[356808532,1743235750053,-500.0,0.0004,30]
[356808533,1743235750094,-500.0,0.0004,30]
[356808534,1743235750134,-900.54,0.0004,30]
[356808535,1743235750172,-500.0,0.0004,30]
[356808536,1743235750213,-559.15,0.0004,30]
[356808537,1743235750254,-620.51,0.0004,30]
[356808538,1743235750294,-197.29974606,0.0004,30]
[356808539,1743235750333,-500.0,0.0004,30]
[356808540,1743235750377,-855.45,0.0004,30]
[356808541,1743235750419,-500.0,0.0004,30]
[356808542,1743235750465,-500.0,0.0004,30]
[356808543,1743235750508,-500.0,0.0004,30]
[356808544,1743235750553,-500.0,0.0004,30]
[356808545,1743235750596,-500.0,0.0004,30]
[356808546,1743235750642,-1000.0,0.0004,30]
[356808547,1743235750682,-500.0,0.0004,30]
[356808548,1743235750722,-500.0,0.0004,30]
[356808549,1743235750760,-500.0,0.0004,30]
[356808550,1743235750799,-347.22054,0.0004,30]
[356808551,1743235750838,-963.21,0.0004,30]
[356808552,1743235750875,-1734.11,0.0004,30]
[356808553,1743235750914,-500.0,0.0004,30]
[356808554,1743235750953,-955.85,0.0004,30]
[356808555,1743235750992,-2452.46,0.0004,30]
[356808556,1743235751031,-500.0,0.0004,30]
[356808557,1743235751072,-500.0,0.0004,30]
[356808559,1743235751110,-500.0,0.0004,30]
[356808561,1743235751149,-500.0,0.0004,30]
[356808564,1743235751188,-500.0,0.0004,30]
[356808566,1743235751227,-1389.75,0.0004,30]
[356808575,1743235751382,-500.0,0.0004,30]
[356808576,1743235751419,-500.0,0.0004,30]
[356808577,1743235751454,-500.0,0.0004,30]
[356808578,1743235751488,-1145.24,0.0004,30]
[356808579,1743235751523,-500.0,0.0004,30]
[356808580,1743235751558,-546.81838221,0.0004,30]
[356808581,1743235751591,-644.97,0.0004,30]
[356808582,1743235751626,-620.95,0.0004,30]
[356808583,1743235751663,-500.0,0.0004,30]
[356808584,1743235751698,-226.03798756,0.0004,30]
[356808585,1743235751739,-229.97599389,0.0004,30]
[356808586,1743235751778,-500.0,0.0004,30]
[356808587,1743235751815,-500.0,0.0004,30]
[356808588,1743235751852,-500.0,0.0004,30]
[356808589,1743235751891,-704.24,0.0004,30]
[356808590,1743235751930,-1519.05,0.0004,30]
[356808591,1743235751968,-500.0,0.0004,30]
[356808592,1743235752007,-500.0,0.0004,30]
[356808593,1743235752048,-500.0,0.0004,30]
[356808594,1743235752087,-2474.82,0.0004,30]
[356808595,1743235752126,-4980.22,0.0004,30]
[356808596,1743235752165,-944.43,0.0004,30]
[356808597,1743235752203,-500.0,0.0004,30]
[356808598,1743235752242,-308.04447534,0.0004,30]
[356808599,1743235752281,-1154.76,0.0004,30]
[356808600,1743235752320,-635.2,0.0004,30]
[356808601,1743235752357,-500.0,0.0004,30]
[356808602,1743235752396,-500.0,0.0004,30]
[356808603,1743235752435,-1215.92,0.0004,30]
[356808604,1743235752472,-500.0,0.0004,30]
[356808605,1743235752508,-500.0,0.0004,30]
[356808606,1743235752542,-500.0,0.0004,30]
[356808607,1743235752578,-549.53,0.0004,30]
[356808609,1743235752614,-841.6,0.0004,30]
[356808610,1743235752652,-500.0,0.0004,30]
[356808611,1743235752689,-324.80567859,0.0004,30]
[356808612,1743235752728,-500.0,0.0004,30]
[356808613,1743235752766,-1673.28,0.0004,30]
[356808614,1743235752802,-4021.44,0.0004,30]
[356808615,1743235752840,-500.0,0.0004,30]
[356808616,1743235752876,-500.0,0.0004,30]
[356808617,1743235752913,-645.85,0.0004,30]
[356808618,1743235752949,-500.0,0.0004,30]
[356808619,1743235752985,-500.0,0.0004,30]
[356808620,1743235753022,-500.0,0.0004,30]
[356808621,1743235753059,-500.0,0.0004,30]
[356808622,1743235753096,-3232.5,0.0004,30]
[356808623,1743235753216,-2197.43,0.0004,30]
[356808624,1743235753255,-500.0,0.0004,30]
[356808625,1743235753292,-691.46,0.0004,30]
[356808626,1743235753328,-500.0,0.0004,30]
[356808627,1743235753364,-500.0,0.0004,30]
[356808628,1743235753401,-500.0,0.0004,30]
[356808629,1743235753438,-500.0,0.0004,30]
[356808630,1743235753477,-1187.26,0.0004,30]
[356808631,1743235753518,-13149.44,0.0004,30]
[356808632,1743235753555,-619.33793371,0.0004,30]
[356808633,1743235753593,-500.0,0.0004,30]
[356808634,1743235753635,-500.0,0.0004,30]
[356808635,1743235753674,-500.0,0.0004,30]
[356808636,1743235753709,-2622.65,0.0004,30]
[356808637,1743235753745,-1673.8,0.0004,30]
[356808638,1743235753784,-500.0,0.0004,30]
[356808639,1743235753823,-992.28,0.0004,30]
[356808640,1743235753862,-500.0,0.0004,30]
[356808641,1743235753901,-1940.15,0.0004,30]
[356808642,1743235753938,-609.46474492,0.0004,30]
[356808643,1743235753976,-500.0,0.0004,30]
[356808644,1743235754013,-49373.65,0.0004,30]
[356808645,1743235754050,-11680.42,0.0004,30]
[356808646,1743235754088,-2113.54,0.0004,30]
[356808647,1743235754127,-500.0,0.0004,30]
[356808648,1743235754166,-1037.22,0.0004,30]
[356808649,1743235754203,-1073.54,0.0004,30]
[356808650,1743235754242,-500.0,0.0004,30]
[356808651,1743235754280,-500.0,0.00040273,30]
[356808652,1743235754318,-523.55034085,0.00040273,30]
[356808653,1743235754358,-500.0,0.00040273,30]
[356808654,1743235754400,-900.54,0.00040273,30]
[356808655,1743235754439,-500.0,0.00040273,30]
[356808656,1743235754478,-559.15,0.00040273,30]
[356808657,1743235754515,-620.51,0.00040273,30]
[356808658,1743235754552,-500.0,0.00040273,30]
[356808659,1743235754589,-855.45,0.00040273,30]
[356808660,1743235754627,-500.0,0.00040273,30]
[356808661,1743235754665,-500.0,0.00040273,30]
[356808662,1743235754705,-500.0,0.00040273,30]
[356808663,1743235754746,-500.0,0.00040273,30]
[356808664,1743235754788,-500.0,0.00040273,30]
[356808665,1743235754832,-1000.0,0.00040273,30]
[356808666,1743235754873,-500.0,0.00040273,30]
[356808667,1743235754917,-625.93186138,0.00040273,30]
[356808668,1743235754959,-500.0,0.00040273,30]
[356808669,1743235755115,-963.21,0.00040273,30]
[356808670,1743235755159,-1734.11,0.00040273,30]
[356808671,1743235755200,-243.38882458,0.00040273,30]
[356808672,1743235755242,-955.85,0.00040273,30]
[356808673,1743235755283,-2452.46,0.00040273,30]
[356808674,1743235755324,-500.0,0.00040273,30]
[356808675,1743235755362,-500.0,0.00040273,30]
[356808676,1743235755402,-500.0,0.00040273,30]
[356808677,1743235755441,-500.0,0.00040273,30]
[356808678,1743235755480,-500.0,0.00040273,30]
[356808679,1743235755520,-1389.75,0.00040273,30]
[356808680,1743235755557,-500.0,0.00040273,30]
[356808681,1743235755594,-500.0,0.00040273,30]
[356808682,1743235755638,-500.0,0.00040273,30]
[356808683,1743235755683,-1145.24,0.00040273,30]
[356808684,1743235755724,-500.0,0.00040273,30]
[356808685,1743235755766,-644.97,0.00040273,30]
[356808686,1743235755808,-620.95,0.00040273,30]
[356808687,1743235755849,-417.31060316,0.00040273,30]
[356808688,1743235755891,-500.0,0.00040273,30]
[356808689,1743235755933,-500.0,0.00040273,30]
[356808690,1743235755975,-500.0,0.00040273,30]
[356808691,1743235756019,-704.24,0.00040273,30]
[356808692,1743235756064,-1519.05,0.00040273,30]
[356808693,1743235756107,-500.0,0.00040273,30]
[356808694,1743235756148,-500.0,0.00040273,30]
[356808695,1743235756191,-522.39837932,0.00040273,30]
[356808696,1743235756235,-2474.82,0.00040273,30]
[356808697,1743235756277,-4980.22,0.00040273,30]
[356808698,1743235756335,-944.43,0.00040273,30]
[356808699,1743235756376,-509.99685945,0.00040273,30]
[356808700,1743235756418,-1154.76,0.00040273,30]
[356808701,1743235756457,-635.2,0.00040273,30]
[356808702,1743235756497,-500.0,0.00040273,30]
[356808703,1743235756537,-500.0,0.00040273,30]
[356808704,1743235756577,-1215.92,0.00040273,30]
[356808705,1743235756615,-500.0,0.00040273,30]
[356808706,1743235756661,-584.95929357,0.00040273,30]
[356808707,1743235756699,-506.2314486,0.00040273,30]
[356808708,1743235756738,-549.53,0.00040273,30]
[356808709,1743235756776,-841.6,0.00040273,30]
[356808710,1743235756815,-500.0,0.00040273,30]
[356808711,1743235756855,-500.0,0.00040273,30]
[356808712,1743235756894,-1673.28,0.00040273,30]
[356808713,1743235757056,-4021.44,0.00040273,30]
[356808714,1743235757097,-500.0,0.00040273,30]
[356808715,1743235757135,-500.0,0.00040273,30]
[356808716,1743235757175,-645.85,0.00040273,30]
[356808717,1743235757214,-500.0,0.00040273,30]
[356808718,1743235757251,-500.0,0.00040273,30]
[356808719,1743235757289,-514.83772972,0.00040273,30]
[356808720,1743235757328,-500.0,0.00040273,30]
[356808721,1743235757367,-3232.5,0.00040273,30]
[356808722,1743235757407,-2197.43,0.00040273,30]
[356808723,1743235757446,-500.0,0.00040273,30]
[356808724,1743235757486,-691.46,0.00040273,30]
[356808725,1743235757525,-500.0,0.00040273,30]
[356808726,1743235757568,-500.0,0.00040273,30]
[356808727,1743235757609,-500.0,0.00040273,30]
[356808728,1743235757651,-500.0,0.00040273,30]
[356808729,1743235757691,-1187.26,0.00040273,30]
[356808730,1743235757734,-13149.44,0.00040273,30]
[356808731,1743235757773,-296.40378802,0.00040273,30]
[356808732,1743235757814,-500.0,0.00040273,30]
[356808733,1743235757856,-500.0,0.00040273,30]
[356808734,1743235757895,-2622.65,0.00040273,30]
[356808735,1743235757936,-1673.8,0.00040273,30]
[356808736,1743235757976,-500.0,0.00040273,30]
[356808737,1743235758018,-992.28,0.00040273,30]
[356808738,1743235758060,-500.0,0.00040273,30]
[356808739,1743235758103,-1940.15,0.00040273,30]
[356808740,1743235758148,-500.0,0.00040273,30]
[356808741,1743235758190,-49373.65,0.00040273,30]
[356808742,1743235758231,-11680.42,0.00040273,30]
[356808743,1743235758272,-2113.54,0.00040273,30]
[356808744,1743235758311,-500.0,0.00040273,30]
[356808745,1743235758352,-1037.22,0.00040273,30]
[356808746,1743235758391,-1073.54,0.00040273,30]
[356808747,1743235758432,-500.0,0.00040273,30]
[356808748,1743235758477,-152.51,0.000404,31]
[356808749,1743235758521,-152.51,0.000404,31]
[356808750,1743235758564,-152.51,0.000404,31]
[356808751,1743235758606,-152.51,0.000404,31]
[356808752,1743235758651,-152.51,0.000404,31]
[356808753,1743235758694,-152.51,0.000404,31]
[356808754,1743235758739,-152.51,0.000404,31]
[356808755,1743235758866,-152.51,0.000404,31]
[356808756,1743235758909,-152.51,0.000404,31]
[356808757,1743235758951,-152.51,0.000404,31]
[356808758,1743235758995,-152.51,0.000404,31]
[356808759,1743235759038,-152.51,0.000404,31]
[356808760,1743235759082,-152.51,0.000404,31]
[356808761,1743235759123,-152.51,0.000404,31]
[356808762,1743235759165,-152.51,0.000404,31]
[356808763,1743235759207,-152.51,0.000404,31]
[356808764,1743235759249,-152.51,0.000404,31]
[356808765,1743235759292,-152.51,0.000404,31]
[356808766,1743235759334,-152.51,0.000404,31]
[356808767,1743235759377,-152.51,0.000404,31]
[356808768,1743235759417,-152.51,0.000404,31]
[356808769,1743235759461,-152.51,0.000404,31]
[356808770,1743235759501,-1000.0,0.00040452,60]
[356808771,1743235759539,-500.0,0.00040452,60]
[356808772,1743235759575,-500.0,0.00040452,60]
[356808773,1743235759613,-500.0,0.00040547,30]
[356808774,1743235759666,-500.0,0.00040547,30]
[356808775,1743235759705,-900.54,0.00040547,30]
[356808776,1743235759742,-500.0,0.00040547,30]
[356808777,1743235759780,-559.15,0.00040547,30]
[356808778,1743235759818,-620.51,0.00040547,30]
[356808779,1743235759856,-500.0,0.00040547,30]
[356808780,1743235759894,-855.45,0.00040547,30]
[356808781,1743235759932,-264.50037199,0.00040547,30]
[356808782,1743235759976,-500.0,0.00040547,30]
[356808783,1743235760020,-500.0,0.00040547,30]
[356808784,1743235760063,-500.0,0.00040547,30]
[356808785,1743235760109,-500.0,0.00040547,30]
[356808786,1743235760154,-1000.0,0.00040547,30]
[356808787,1743235760199,-262.06868525,0.00040547,30]
[356808788,1743235760242,-452.1243154,0.00040547,30]
[356808789,1743235760281,-963.21,0.00040547,30]
[356808790,1743235760319,-1734.11,0.00040547,30]
[356808791,1743235760361,-955.85,0.00040547,30]
[356808792,1743235760407,-2452.46,0.00040547,30]
[356808793,1743235760452,-500.0,0.00040547,30]
[356808794,1743235760496,-500.0,0.00040547,30]
[356808795,1743235760538,-500.0,0.00040547,30]
[356808796,1743235760676,-500.0,0.00040547,30]
[356808797,1743235760717,-335.57329909,0.00040547,30]
[356808798,1743235760758,-1389.75,0.00040547,30]
[356808799,1743235760799,-500.0,0.00040547,30]
[356808800,1743235760841,-500.0,0.00040547,30]
[356808801,1743235760881,-500.0,0.00040547,30]
[356808802,1743235760917,-1145.24,0.00040547,30]
[356808803,1743235760955,-240.38308117,0.00040547,30]
[356808804,1743235760997,-644.97,0.00040547,30]
[356808805,1743235761037,-620.95,0.00040547,30]
[356808806,1743235761077,-500.0,0.00040547,30]
[356808807,1743235761121,-500.0,0.00040547,30]
[356808808,1743235761164,-500.0,0.00040547,30]
[356808809,1743235761205,-704.24,0.00040547,30]
[356808810,1743235761248,-1519.05,0.00040547,30]
[356808811,1743235761287,-500.0,0.00040547,30]
[356808812,1743235761329,-500.0,0.00040547,30]
[356808813,1743235761370,-2474.82,0.00040547,30]
[356808814,1743235761414,-4980.22,0.00040547,30]
[356808815,1743235761454,-944.43,0.00040547,30]
[356808816,1743235761511,-1154.76,0.00040547,30]
[356808817,1743235761580,-635.2,0.00040547,30]
[356808818,1743235761651,-500.0,0.00040547,30]
[356808819,1743235761725,-500.0,0.00040547,30]
[356808820,1743235761792,-1215.92,0.00040547,30]
[356808821,1743235761858,-500.0,0.00040547,30]
[356808822,1743235761921,-549.53,0.00040547,30]
[356808823,1743235761987,-841.6,0.00040547,30]
[356808824,1743235762051,-500.0,0.00040547,30]
[356808825,1743235762113,-500.0,0.00040547,30]
[356808826,1743235762174,-1673.28,0.00040547,30]
[356808827,1743235762238,-4021.44,0.00040547,30]
[356808828,1743235762302,-500.0,0.00040547,30]
[356808829,1743235762360,-500.0,0.00040547,30]
[356808830,1743235762417,-645.85,0.00040547,30]
[356808831,1743235762475,-490.82603421,0.00040547,30]
[356808832,1743235762533,-500.0,0.00040547,30]
[356808833,1743235762589,-500.0,0.00040547,30]
[356808834,1743235762648,-3232.5,0.00040547,30]
[356808835,1743235762704,-2197.43,0.00040547,30]
[356808836,1743235762869,-500.0,0.00040547,30]
[356808837,1743235762909,-691.46,0.00040547,30]
[356808838,1743235762949,-500.0,0.00040547,30]
[356808839,1743235762994,-500.0,0.00040547,30]
[356808840,1743235763036,-500.0,0.00040547,30]
[356808841,1743235763077,-500.0,0.00040547,30]
[356808842,1743235763119,-1187.26,0.00040547,30]
[356808843,1743235763163,-13149.44,0.00040547,30]
[356808844,1743235763207,-500.0,0.00040547,30]
[356808845,1743235763247,-500.0,0.00040547,30]
[356808846,1743235763288,-2622.65,0.00040547,30]
[356808847,1743235763327,-1673.8,0.00040547,30]
[356808848,1743235763370,-500.0,0.00040547,30]
[356808849,1743235763411,-992.28,0.00040547,30]
[356808850,1743235763450,-500.0,0.00040547,30]
[356808851,1743235763494,-1940.15,0.00040547,30]
[356808852,1743235763533,-500.0,0.00040547,30]
[356808853,1743235763573,-49373.65,0.00040547,30]
[356808854,1743235763611,-11680.42,0.00040547,30]
[356808855,1743235763667,-2113.54,0.00040547,30]
[356808856,1743235763709,-286.30851232,0.00040547,30]
[356808857,1743235763748,-1037.22,0.00040547,30]
[356808858,1743235763788,-1073.54,0.00040547,30]
[356808859,1743235763828,-500.0,0.00040547,30]
[356808860,1743235763868,-2363.33241467,0.0004078,37]
[356808861,1743235763906,-450.0,0.000408,120]
[356808862,1743235763945,-450.0,0.000408,30]
[356808863,1743235763987,-225.107775,0.000408,60]
[356808864,1743235764028,-2000.0,0.0004082,120]
[356808865,1743235764069,-500.0,0.00040821,30]
[356808866,1743235764110,-500.0,0.00040821,30]
[356808867,1743235764159,-900.54,0.00040821,30]
[356808868,1743235764202,-500.0,0.00040821,30]
[356808869,1743235764243,-559.15,0.00040821,30]
[356808870,1743235764285,-620.51,0.00040821,30]
[356808871,1743235764325,-472.25495352,0.00040821,30]
[356808872,1743235764364,-855.45,0.00040821,30]
[356808873,1743235764403,-500.0,0.00040821,30]
[356808874,1743235764441,-500.0,0.00040821,30]
[356808875,1743235764478,-500.0,0.00040821,30]
[356808876,1743235764520,-500.0,0.00040821,30]
[356808877,1743235764562,-1068.92658165,0.00040821,30]
[356808878,1743235764599,-963.21,0.00040821,30]
[356808879,1743235764741,-1734.11,0.00040821,30]
[356808880,1743235764782,-955.85,0.00040821,30]
[356808881,1743235764823,-2452.46,0.00040821,30]
[356808882,1743235764860,-500.0,0.00040821,30]
[356808883,1743235764899,-500.0,0.00040821,30]
[356808884,1743235764937,-264.16663856,0.00040821,30]
[356808885,1743235764978,-500.0,0.00040821,30]
[356808886,1743235765018,-1389.75,0.00040821,30]
[356808887,1743235765059,-500.0,0.00040821,30]
[356808888,1743235765101,-500.0,0.00040821,30]
[356808889,1743235765141,-500.0,0.00040821,30]
[356808890,1743235765180,-1145.24,0.00040821,30]
[356808891,1743235765221,-644.97,0.00040821,30]
[356808892,1743235765261,-2000.0,0.00040821,120]
[356808893,1743235765301,-526.62094707,0.00040821,120]
[356808894,1743235765340,-620.95,0.00040821,30]
[356808895,1743235765379,-500.0,0.00040821,30]
[356808896,1743235765415,-500.0,0.00040821,30]
[356808897,1743235765453,-500.0,0.00040821,30]
[356808898,1743235765495,-704.24,0.00040821,30]
[356808899,1743235765534,-1519.05,0.00040821,30]
[356808900,1743235765571,-500.0,0.00040821,30]
[356808901,1743235765610,-500.0,0.00040821,30]
[356808902,1743235765658,-2474.82,0.00040821,30]
[356808903,1743235765699,-4980.22,0.00040821,30]
[356808904,1743235765739,-944.43,0.00040821,30]
[356808905,1743235765779,-1154.76,0.00040821,30]
[356808906,1743235765819,-635.2,0.00040821,30]
[356808907,1743235765857,-500.0,0.00040821,30]
[356808908,1743235765894,-500.0,0.00040821,30]
[356808909,1743235765933,-1215.92,0.00040821,30]
[356808910,1743235765972,-500.0,0.00040821,30]
[356808911,1743235766010,-549.53,0.00040821,30]
[356808912,1743235766047,-841.6,0.00040821,30]
[356808913,1743235766087,-500.0,0.00040821,30]
[356808914,1743235766128,-500.0,0.00040821,30]
[356808915,1743235766167,-1673.28,0.00040821,30]
[356808916,1743235766207,-4021.44,0.00040821,30]
[356808917,1743235766246,-500.0,0.00040821,30]
[356808918,1743235766283,-500.0,0.00040821,30]
[356808919,1743235766322,-645.85,0.00040821,30]
[356808920,1743235766442,-428.30244991,0.00040821,30]
[356808921,1743235766487,-500.0,0.00040821,30]
[356808922,1743235766526,-3232.5,0.00040821,30]
[356808923,1743235766564,-2197.43,0.00040821,30]
[356808924,1743235766601,-500.0,0.00040821,30]
[356808925,1743235766640,-691.46,0.00040821,30]
[356808926,1743235766676,-500.0,0.00040821,30]
[356808927,1743235766714,-500.0,0.00040821,30]
[356808928,1743235766751,-500.0,0.00040821,30]
[356808929,1743235766790,-314.7516541,0.00040821,30]
[356808930,1743235766830,-1187.26,0.00040821,30]
[356808931,1743235766868,-13149.44,0.00040821,30]
[356808932,1743235766907,-500.0,0.00040821,30]
[356808933,1743235766946,-500.0,0.00040821,30]
[356808934,1743235766992,-2622.65,0.00040821,30]
[356808935,1743235767036,-1673.8,0.00040821,30]
[356808936,1743235767077,-500.0,0.00040821,30]
[356808937,1743235767118,-992.28,0.00040821,30]
[356808938,1743235767158,-500.0,0.00040821,30]
[356808939,1743235767200,-1940.15,0.00040821,30]
[356808940,1743235767242,-500.0,0.00040821,30]
[356808941,1743235767283,-49373.65,0.00040821,30]
[356808942,1743235767321,-11680.42,0.00040821,30]
[356808943,1743235767360,-2113.54,0.00040821,30]
[356808944,1743235767398,-1037.22,0.00040821,30]
[356808945,1743235767438,-1073.54,0.00040821,30]
[356808946,1743235767477,-1000.0,0.00040997,120]
[356808947,1743235767515,-7853.95,0.00040998,120]
[356808948,1743235767553,-1000.0,0.00040999,120]
[356808949,1743235767594,-674316.80680453,0.00041,90]
[356808950,1743235770291,-2942.18060102,0.000149,2]
[356808951,1743235771158,-785.38382227,0.000149,2]
[356808964,1743235831959,-510.82391314,0.000149,2]
[356808965,1743235832080,-819.80611266,0.000149,2]
[356808966,1743235832143,-232.90670937,0.000149,2]
[356808967,1743235832153,-241.15010839,0.00014973,2]
[356808968,1743235832162,-150.0,0.00014999,2]
[356808969,1743235832173,-6316.59436791,0.00015,2]
[356808970,1743235832198,-151015.74408071,0.00015,2]
[356808971,1743235832211,-1077.94,0.00015,2]
[356808972,1743235832314,-865.0,0.00015,2]
[356809034,1743235837908,-4595.3446658,0.00015,2]
[356809039,1743235838075,-1935.8848745,0.00015,2]
[356809040,1743235838205,-0.55716934,0.00015,2]
[356809041,1743235838217,-509.67538412,0.00015,2]
[356809042,1743235838229,-606.4717904,0.00015,2]
[356809062,1743235840250,-8673.5920313,0.00015,2]